bitfinex-derivatives/quotes_SOLF0:USTF0_20251209
["timestamp","ask_amount","ask_price","bid_price","bid_amount"]
[1765304790545,59.48,142.99,142.91,3.26]
[1765304790742,6.2947,142.97,142.91,3.26]
[1765304791143,97.9255,142.96,142.87,3.26]
[1765304791341,97.9255,142.96,142.9,0.05297355]
[1765304791342,0.05274312,142.93,142.9,0.05297355]
[1765304793049,0.05274312,142.93,142.9,3.31297355]
[1765304797559,0.05274312,142.93,142.91,3.26]
[1765304799353,0.05274312,142.93,142.92,3.26]
[1765304800163,6.2947,142.97,142.92,10.34647248]
[1765304800360,6.2947,142.97,142.93,7.08647248]
[1765304800561,6.2947,142.97,142.94,7.08647248]
[1765304800763,6.2947,142.97,142.95,7.08647248]
[1765304800953,6.2947,142.97,142.96,7.08647248]
[1765304802564,0.04597806,142.98,142.96,10.34647248]
[1765304802762,0.04597806,142.98,142.96,3.26]
[1765304803061,0.04597806,142.98,142.97,7.08809314]
[1765304807160,1.44597806,142.98,142.97,7.08809314]
[1765304808670,1.44597806,142.98,142.97,9.314e-05]
[1765304809056,0.04597806,142.98,142.97,9.314e-05]
[1765304811874,0.04597806,142.98,142.95,0.04772889]
[1765304811875,6.2945,142.97,142.95,0.04772889]
[1765304812076,65.7545,142.97,142.95,0.04772889]
[1765304812675,0.04597806,142.98,142.95,3.30772889]
[1765304812979,59.46,142.97,142.95,3.30772889]
[1765304813172,0.04597806,142.98,142.95,3.30772889]
[1765304813372,0.04597806,142.98,142.95,0.04772889]
[1765304814571,6.2946,142.97,142.95,0.04772889]
[1765304817567,6.34007806,142.98,142.95,3.27772889]
[1765304817773,65.80007806,142.98,142.95,3.27772889]
[1765304818087,59.50597806,142.98,142.95,3.27772889]
[1765304819582,59.50597806,142.98,142.96,3.23]
[1765304820480,59.50597806,142.98,142.97,10.24285365]
[1765304820682,59.50597806,142.98,142.97,7.01285365]
[1765304821277,59.50597806,142.98,142.97,10.24285365]
[1765304821484,234.99234684,143.06,142.98,3.23]
[1765304821775,59.46,143.04,143.0,3.23]
[1765304822083,59.46,143.04,143.01,7.01285365]
[1765304822283,59.46,143.04,143.02,7.01285365]
[1765304822578,97.8261,143.1,143.03,10.25031348]
[1765304822876,97.8104,143.13,143.05,3.2781458]
[1765304823083,97.86,143.05,142.98,3.23]
[1765304823278,59.46,143.04,142.98,3.23]
[1765304823672,59.46,143.04,142.95,104.46047487]
[1765304823673,59.46,143.04,142.96,6.2946]
[1765304823872,59.46,143.04,142.96,9.5246]
[1765304824094,0.04827276,143.01,142.99,0.04899828]
[1765304824584,59.44,143.0,142.99,0.04899828]
[1765304825887,121.44,143.0,142.99,0.04899828]
[1765304827677,121.44,143.0,142.94,6.53657487]
[1765304828080,121.44,143.0,142.93,9.76657487]
[1765304828278,121.44,143.0,142.94,3.23]
[1765304828676,0.046768,142.98,142.96,0.04674838]
[1765304829184,6.340968,142.98,142.96,0.04674838]
[1765304831688,59.44,142.97,142.96,0.04674838]
[1765304833091,0.046768,142.98,142.96,3.22674838]
[1765304838389,6.2926,143.02,142.98,3.18]
[1765304838797,59.44,143.03,142.99,3.18]
[1765304839105,59.44,143.03,142.99,9.71657487]
[1765304839285,59.44,143.03,143.0,3.18]
[1765304839587,0.04542523,143.03,143.0,3.22625321]
[1765304840186,2.76191915,143.03,143.0,0.04625321]
[1765304840487,2.71649392,143.01,143.0,0.04625321]
[1765304840690,59.48542523,143.03,143.0,0.04625321]
[1765304841507,6.2926,143.02,143.0,0.04625321]
[1765304846400,6.2939,142.99,142.95,9.77657487]
[1765304846607,65.7339,142.99,142.96,3.24]
[1765304847600,65.78218289,142.99,142.96,3.28658859]
[1765304849394,0.04828289,142.99,142.96,3.28658859]
[1765304849597,0.04828289,142.99,142.98,3.24]
[1765304851306,0.04828289,142.99,142.96,0.04658859]
[1765304852107,0.04828289,142.99,142.96,3.28658859]
[1765304852706,6.34208289,142.99,142.96,3.28658859]
[1765304853701,6.2942,142.98,142.96,0.04658859]
[1765304858905,0.04828289,142.99,142.96,3.28658859]
[1765304859306,6.2942,142.98,142.96,0.04658859]
[1765304859511,6.2942,142.98,142.96,3.28658859]
[1765304861513,6.2942,142.98,142.96,0.04658859]
[1765304863906,2.71842705,142.97,142.96,0.04658859]
[1765304864612,2.76670994,142.99,142.96,3.28658859]
[1765304864812,0.04828289,142.99,142.96,3.28658859]
[1765304867720,6.34198289,142.99,142.96,3.28658859]
[1765304870321,0.04828289,142.99,142.96,9.81422502]
[1765304870521,0.04828289,142.99,142.97,3.24]
[1765304873617,0.04828289,142.99,142.98,9.76763643]
[1765304874515,59.44,143.03,142.99,3.24]
[1765304874918,6.2923,143.02,142.99,3.24]
[1765304875217,59.44,143.03,142.99,3.24]
[1765304875218,59.44,143.03,143.0,3.03]
[1765304875425,59.4845227,143.03,143.0,3.08207095]
[1765304876419,59.4845227,143.03,143.0,0.05207095]
[1765304877525,6.2924,143.02,143.0,0.05207095]
[1765304878621,65.7324,143.02,143.0,0.05207095]
[1765304879427,65.7324,143.02,143.0,3.08207095]
[1765304879929,65.7324,143.02,143.0,0.05207095]
[1765304882832,65.7324,143.02,142.94,3.03]
[1765304882833,6.2944,142.98,142.94,9.55763643]
[1765304883222,65.7344,142.98,142.94,9.55763643]
[1765304883522,65.7344,142.98,142.95,3.03]
[1765304883722,59.44,142.98,142.95,3.03]
[1765304884030,59.48878126,142.98,142.95,3.07691167]
[1765304886135,65.78308126,142.98,142.95,0.04691167]
[1765304886339,59.48878126,142.98,142.95,3.03691167]
[1765304886938,65.78298126,142.98,142.95,3.03691167]
[1765304890236,65.78298126,142.98,142.95,9.5645481]
[1765304896845,6.2945,142.97,142.95,9.5645481]
[1765304897033,59.48878126,142.98,142.95,0.04691167]
[1765304897840,6.2945,142.97,142.95,0.04691167]
[1765304898028,6.2945,142.97,142.95,3.03691167]
[1765304898236,59.48878126,142.98,142.95,3.03691167]
[1765304898540,59.48878126,142.98,142.96,2.99]
[1765304898741,0.04878126,142.98,142.97,2.99]
[1765304898943,59.44,143.07,142.98,2.99]
[1765304899130,59.44,143.07,143.0,9.52488576]
[1765304899533,6.2921,143.03,143.0,9.52488576]
[1765304899741,6.2921,143.03,142.99,9.52488576]
[1765304899946,97.8538,143.06,142.99,9.52488576]
[1765304899947,0.05274576,143.02,142.99,9.5759843]
[1765304900137,0.05274576,143.02,142.99,0.05109854]
[1765304900643,0.05274576,143.02,142.99,3.04109854]
[1765304901446,6.34504576,143.02,142.99,3.04109854]
[1765304902249,0.05274576,143.02,142.99,3.04109854]
[1765304902438,0.05274576,143.02,143.0,2.99]
[1765304903153,0.05274576,143.02,143.01,2.99]
[1765304906341,174.08427561,143.11,143.02,3.04]
[1765304906545,97.8622,143.05,143.01,6.53488576]
[1765304906737,97.8622,143.05,143.0,3.04]
[1765304906944,102.10947561,143.05,143.0,3.04]
[1765304907142,6.2924,143.02,143.0,3.04]
[1765304907348,6.2924,143.02,143.01,0.04519522]
[1765304907648,6.2924,143.02,143.0,0.04804664]
[1765304909244,68.2924,143.02,143.0,0.04804664]
[1765304910845,6.2917,143.04,143.0,3.08804664]
[1765304913060,146.97570507,143.09,143.03,3.04]
[1765304913251,59.44,143.14,143.06,3.04]
[1765304913451,97.8055,143.13,143.09,0.04526014]
[1765304913651,6.2885,143.11,143.09,0.04526014]
[1765304913853,4.24727561,143.1,143.09,0.04526014]
[1765304914055,59.44,143.1,143.09,0.04526014]
[1765304914669,158.6658,143.1,143.02,6.52077905]
[1765304914868,157.2658,143.1,143.01,9.56077905]
[1765304915068,157.2658,143.1,143.02,3.04]
[1765304915271,6.2894,143.09,143.03,3.04]
[1765304915580,0.05001238,143.07,143.05,0.05051751]
[1765304918778,6.34031238,143.07,143.05,0.05051751]
[1765304921381,59.42,143.06,143.05,0.05051751]
[1765304923285,59.42,143.06,143.05,3.09051751]
[1765304923584,0.05001238,143.07,143.05,3.09051751]
[1765304923888,0.05001238,143.07,143.05,0.05051751]
[1765304924276,0.05001238,143.07,143.05,3.09051751]
[1765304924973,6.34021238,143.07,143.05,3.09051751]
[1765304925378,6.34021238,143.07,143.05,0.05051751]
[1765304929584,0.05001238,143.07,143.05,3.09051751]
[1765304930392,0.05001238,143.07,143.05,0.05051751]
[1765304930688,6.34021238,143.07,143.05,0.05051751]
[1765304932586,0.05001238,143.07,143.05,3.09051751]
[1765304939098,2.76424816,143.07,143.05,3.09051751]
[1765304939297,2.76424816,143.07,143.05,0.05051751]
[1765304940593,9.05454816,143.07,143.05,0.05051751]
[1765304941500,6.34031238,143.07,143.05,0.05051751]
[1765304942001,6.34031238,143.07,143.05,3.05051751]
[1765304942396,0.05001238,143.07,143.05,3.05051751]
[1765304943304,0.05001238,143.07,143.05,9.55767676]
[1765304943507,0.05001238,143.07,143.06,3.0]
[1765304943708,6.2887,143.11,143.06,3.0]
[1765304944005,6.2887,143.11,143.07,3.0]
[1765304944908,6.2887,143.11,143.08,3.0]
[1765304945104,6.2887,143.11,143.08,3.05132716]
[1765304946105,62.11423578,143.12,143.08,3.05132716]
[1765304946410,59.4,143.12,143.08,3.05132716]
[1765304946802,65.688,143.12,143.08,3.05132716]
[1765304947003,65.688,143.12,143.09,3.11]
[1765304951313,9.00263578,143.11,143.08,0.05132716]
[1765304951519,9.00263578,143.11,143.08,3.16132716]
[1765304952018,6.2888,143.1,143.08,3.16132716]
[1765304952322,6.2888,143.1,143.08,0.05132716]
[1765304953021,2.71423578,143.09,143.08,0.05132716]
[1765304953618,9.00343578,143.09,143.08,0.05132716]
[1765304955419,6.2905,143.07,143.05,6.50715925]
[1765304955626,2.71423578,143.06,143.04,6.50715925]
[1765304956026,2.71423578,143.06,143.04,9.61715925]
[1765304956426,2.75897781,143.06,143.04,9.66355206]
[1765304956828,9.04967781,143.06,143.04,6.55355206]
[1765304957825,9.04967781,143.06,143.04,0.04639281]
[1765304958228,9.04967781,143.06,143.04,3.15639281]
[1765304958636,9.04967781,143.06,143.04,0.04639281]
[1765304966935,9.04967781,143.06,143.04,6.55355206]
[1765304967237,97.8273,143.1,143.05,6.50715925]
[1765304967238,2.71423578,143.1,143.05,6.50715925]
[1765304967428,2.71423578,143.1,143.06,3.19]
[1765304968534,65.6887,143.11,143.07,3.19]
[1765304968731,59.4,143.11,143.08,3.24247469]
[1765304970139,6.2889,143.1,143.08,3.24247469]
[1765304970734,59.4,143.11,143.08,3.24247469]
[1765304971443,6.2884,143.11,143.08,0.05247469]
[1765304971646,6.2884,143.11,143.08,3.24247469]
[1765304975141,6.2888,143.1,143.08,3.24247469]
[1765304975845,6.2892,143.09,143.08,0.05247469]
[1765304976248,100.54433578,143.1,143.04,6.52471191]
[1765304976447,2.71423578,143.06,143.04,3.19]
[1765304977448,9.0542823,143.06,143.04,3.23879011]
[1765304977743,9.0542823,143.06,143.04,0.04879011]
[1765304978043,6.2909,143.05,143.04,0.04879011]
[1765304981044,9.0545823,143.06,143.04,0.04879011]
[1765304984250,6.2909,143.05,143.04,0.04879011]
[1765304988954,6.2923,143.02,143.0,9.71471191]
[1765304989166,9.00653578,143.02,143.0,9.71471191]
[1765304989958,9.05367089,143.02,143.0,9.76035268]
[1765304991860,9.05367089,143.02,143.0,6.57035268]
[1765304992460,9.05367089,143.02,143.0,0.04564077]
[1765304992664,6.2927,143.01,143.0,0.04564077]
[1765304996367,6.2937,142.99,142.96,6.52471191]
[1765304996551,9.00793578,142.99,142.95,2.99]
[1765304996854,6.2937,142.99,142.95,2.99]
[1765304997454,0.04878872,142.98,142.96,0.05126683]
[1765304997656,6.34298872,142.98,142.96,0.05126683]
[1765304999460,62.0,142.97,142.96,0.05126683]
[1765305000658,97.9244,142.96,142.89,9.51471191]
[1765305000960,157.3535,142.95,142.87,9.51471191]
[1765305001156,157.3535,142.95,142.87,2.99]
[1765305001346,6.2959,142.94,142.88,2.99]
[1765305001548,0.04914066,142.92,142.9,0.04458923]
[1765305001857,6.2944,142.98,142.92,2.99]
[1765305002051,59.44,142.98,142.92,2.99]
[1765305002253,6.2946,142.97,142.92,2.99]
[1765305002553,59.44,142.98,142.92,2.99]
[1765305002953,0.05249955,142.96,142.94,0.05021185]
[1765305003156,0.05249955,142.96,142.94,3.04021185]
[1765305003351,6.34749955,142.96,142.94,3.04021185]
[1765305003965,0.05249955,142.96,142.94,3.04021185]
[1765305005566,4.24694807,143.02,142.95,3.08]
[1765305005765,59.44,143.03,142.95,3.08]
[1765305006466,6.2928,143.01,142.96,6.2948]
[1765305006651,0.05043762,143.0,142.98,3.13164155]
[1765305009069,0.05043762,143.0,142.99,3.08]
[1765305013368,0.05043762,143.0,142.98,3.13164155]
[1765305013771,6.34363762,143.0,142.98,3.13164155]
[1765305014172,6.34363762,143.0,142.98,0.05164155]
[1765305014970,6.2945,142.97,142.92,9.3766]
[1765305015174,6.2945,142.97,142.93,3.08]
[1765305015373,4.24694807,143.0,142.93,3.08]
[1765305015873,161.56684807,143.03,142.96,3.08]
[1765305016068,0.04720893,143.01,142.98,3.12627155]
[1765305016477,6.34030893,143.01,142.98,3.12627155]
[1765305016964,0.04720893,143.01,142.98,3.12627155]
[1765305017764,0.04720893,143.01,143.0,3.08]
[1765305019578,0.04720893,143.01,142.98,0.04627155]
[1765305020175,0.04720893,143.01,142.98,3.12627155]
[1765305020375,0.04720893,143.01,142.98,0.04627155]
[1765305021579,6.2935,143.0,142.98,0.04627155]
[1765305025077,10.54044807,143.0,142.98,0.04627155]
[1765305025281,10.54044807,143.0,142.94,3.0]
[1765305025282,6.2949,142.96,142.94,3.0]
[1765305025980,6.2949,142.96,142.92,9.52471191]
[1765305026176,6.2949,142.96,142.93,3.0]
[1765305026375,0.05181094,142.96,142.93,3.05146098]
[1765305028584,0.05181094,142.96,142.94,3.0]
[1765305030183,0.05181094,142.96,142.93,3.05146098]
[1765305030380,6.34681094,142.96,142.93,3.05146098]
[1765305030588,0.05181094,142.96,142.93,0.05146098]
[1765305031081,6.2955,142.95,142.93,0.05146098]
[1765305033688,62.0,142.94,142.93,0.05146098]
[1765305036185,0.05181094,142.96,142.93,3.05146098]
[1765305036390,0.05181094,142.96,142.94,3.0]
[1765305036689,0.05181094,142.96,142.94,9.52471191]
[1765305036888,0.05181094,142.96,142.95,3.0]
[1765305037089,59.46,142.99,142.95,3.0]
[1765305037386,59.46,143.03,142.97,3.0]
[1765305038184,6.2928,143.01,142.97,3.0]
[1765305038391,6.33971285,143.01,142.99,0.04831237]
[1765305040493,0.04691285,143.01,142.99,3.04831237]
[1765305042193,6.2915,143.04,142.99,3.04831237]
[1765305043095,0.05023451,143.03,142.99,3.04831237]
[1765305045699,6.34213451,143.03,142.99,3.04831237]
[1765305046989,0.05023451,143.03,142.99,3.04831237]
[1765305048196,0.05023451,143.03,143.0,3.0]
[1765305048895,0.05023451,143.03,143.01,3.0]
[1765305050197,0.05023451,143.03,143.01,9.2926]
[1765305050398,59.46,143.06,143.02,3.0]
[1765305050598,59.46,143.06,143.03,3.0]
[1765305051400,59.50739728,143.06,143.03,0.05288762]
[1765305051594,6.2911,143.05,143.03,0.05288762]
[1765305053296,62.0,143.04,143.03,0.05288762]
[1765305059317,62.0,143.04,143.03,3.23288762]
[1765305059521,62.0,143.04,143.03,0.05288762]
[1765305059522,59.44,143.04,143.03,0.05288762]
[1765305062426,121.44,143.04,142.98,3.18]
[1765305062814,2.71736954,143.01,142.98,3.18]
[1765305063419,0.04946334,143.01,142.98,3.22620852]
[1765305064522,6.34226334,143.01,142.98,0.04620852]
[1765305064726,0.04946334,143.01,142.98,3.22620852]
[1765305065926,0.04946334,143.01,142.98,0.04620852]
[1765305066128,0.04946334,143.01,142.98,3.31620852]
[1765305070132,62.15736954,143.0,142.98,0.04620852]
[1765305071727,68.45076954,143.0,142.98,0.04620852]
[1765305072134,68.45076954,143.0,142.98,3.31620852]
[1765305072336,68.45076954,143.0,142.98,0.04620852]
[1765305073232,9.01076954,143.0,142.98,0.04620852]
[1765305073533,68.45076954,143.0,142.98,0.04620852]
[1765305076338,65.7334,143.0,142.98,3.31620852]
[1765305077442,68.45076954,143.0,142.98,3.31620852]
[1765305080136,62.15736954,143.0,142.98,3.31620852]
[1765305080326,62.15736954,143.0,142.98,0.04620852]
[1765305080833,68.45066954,143.0,142.98,0.04620852]
[1765305081637,68.45066954,143.0,142.98,3.31620852]
[1765305082944,65.7333,143.0,142.98,3.31620852]
[1765305083342,59.44,143.0,142.98,3.31620852]
[1765305083743,59.48946334,143.01,142.98,3.31620852]
[1765305084533,65.78226334,143.01,142.98,3.31620852]
[1765305085243,6.34226334,143.01,142.98,3.31620852]
[1765305085439,65.78226334,143.01,142.98,3.31620852]
[1765305085847,6.34226334,143.01,142.98,3.31620852]
[1765305086144,65.78226334,143.01,142.98,3.31620852]
[1765305087036,65.78226334,143.01,142.99,3.24]
[1765305088543,65.78226334,143.01,142.98,9.81092043]
[1765305088746,65.78226334,143.01,142.98,3.28620852]
[1765305089452,68.49963288,143.01,142.98,3.28620852]
[1765305090452,68.49963288,143.01,142.98,0.04620852]
[1765305090740,68.49963288,143.01,142.98,3.28620852]
[1765305091350,6.2932,143.0,142.98,3.28620852]
[1765305091648,2.71736954,142.99,142.98,0.04620852]
[1765305094849,9.01096954,142.99,142.98,0.04620852]
[1765305097147,9.01096954,142.99,142.98,3.28620852]
[1765305097362,6.34256334,143.01,142.98,3.28620852]
[1765305097555,0.04946334,143.01,143.0,9.76471191]
[1765305098246,2.71736954,143.07,143.01,3.24]
[1765305098550,2.71736954,143.02,142.99,6.53737143]
[1765305098759,2.71736954,142.99,142.97,6.53737143]
[1765305098945,2.71736954,142.99,142.94,3.24]
[1765305099144,6.33919545,142.98,142.95,3.28952201]
[1765305099340,0.04509545,142.98,142.95,3.28952201]
[1765305100852,2.71736954,142.97,142.95,0.04952201]
[1765305101441,97.9275,142.96,142.9,16.30674852]
[1765305101648,97.9275,142.96,142.89,3.24]
[1765305101649,2.71736954,142.92,142.89,3.24]
[1765305102548,2.76672626,142.92,142.89,3.2909128]
[1765305103149,0.04935672,142.92,142.89,3.2909128]
[1765305104459,2.76672626,142.92,142.89,3.2909128]
[1765305105554,2.76672626,142.92,142.89,0.0509128]
[1765305105849,2.71736954,142.9,142.89,0.0509128]
[1765305106757,6.2973,142.91,142.89,3.2909128]
[1765305107160,62.20672626,142.92,142.89,3.2909128]
[1765305109458,59.48935672,142.92,142.89,3.2909128]
[1765305111460,0.04935672,142.92,142.89,3.2909128]
[1765305112159,0.04935672,142.92,142.91,3.24]
[1765305112663,2.76672626,142.92,142.89,0.0509128]
[1765305113450,9.06362626,142.92,142.89,0.0509128]
[1765305116061,9.06362626,142.92,142.89,3.3409128]
[1765305116666,6.34625672,142.92,142.89,3.3409128]
[1765305118466,6.34625672,142.92,142.89,0.0509128]
[1765305120478,6.2972,142.91,142.89,0.0509128]
[1765305120774,97.9847,142.87,142.78,3.29]
[1765305120960,4.25057529,142.85,142.79,3.29]
[1765305121766,0.05100797,142.83,142.81,0.04817987]
[1765305124266,98.06590797,142.83,142.72,3.29]
[1765305124570,98.06590797,142.83,142.69,59.5]
[1765305124571,98.0321,142.8,142.69,59.5]
[1765305124769,98.0321,142.8,142.7,3.29]
[1765305124770,59.48,142.79,142.7,3.29]
[1765305125269,0.04856333,142.76,142.73,3.34073163]
[1765305129767,0.04856333,142.76,142.73,0.05073163]
[1765305130473,6.35256333,142.76,142.73,0.05073163]
[1765305131667,68.35256333,142.76,142.73,0.05073163]
[1765305132170,6.3043,142.75,142.73,0.05073163]
[1765305132575,65.8043,142.75,142.73,0.05073163]
[1765305133269,6.3053,142.73,142.67,3.29]
[1765305133474,6.3053,142.73,142.68,3.29]
[1765305134175,0.05204814,142.72,142.69,3.33485169]
[1765305137881,0.05204814,142.72,142.7,3.29]
[1765305138376,0.05204814,142.72,142.71,3.29]
[1765305138868,0.00204814,142.72,142.71,3.29]
[1765305140069,59.52,142.77,142.73,3.29]
[1765305140280,157.5783,142.77,142.68,3.29]
[1765305140464,98.0674,142.75,142.68,3.29]
[1765305140672,6.3061,142.71,142.68,3.29]
[1765305141068,6.3585056,142.71,142.68,3.33702473]
[1765305141374,0.0524056,142.71,142.68,3.33702473]
[1765305142580,0.0524056,142.71,142.68,9.64422473]
[1765305142771,0.0524056,142.71,142.69,3.29]
[1765305143169,0.0024056,142.71,142.69,9.5966]
[1765305143373,66.26255624,142.8,142.7,3.29]
[1765305143581,63.80255624,142.8,142.7,3.29]
[1765305144283,0.0503051,142.76,142.74,0.05385923]
[1765305144479,0.0503051,142.76,142.74,3.34385923]
[1765305150491,0.0503051,142.76,142.75,3.18]
[1765305150683,102.27475624,142.83,142.75,3.18]
[1765305150684,59.54,142.82,142.75,3.18]
[1765305151581,0.05053391,142.8,142.78,3.18]
[1765305152685,68.3004,142.84,142.79,3.18]
[1765305152897,97.9732,142.89,142.79,3.18]
[1765305153076,157.5132,142.89,142.79,3.18]
[1765305153276,6.2992,142.87,142.81,6.3014]
[1765305153575,6.2992,142.87,142.82,3.18]
[1765305153771,0.05149719,142.86,142.84,3.18]
[1765305155387,6.35099719,142.86,142.83,0.05247448]
[1765305156880,6.35099719,142.86,142.83,3.23247448]
[1765305158175,6.35099719,142.86,142.83,0.05247448]
[1765305158380,6.2999,142.85,142.83,0.05247448]
[1765305158583,59.52,142.84,142.77,3.18]
[1765305159382,97.9726,142.89,142.78,3.18]
[1765305159682,0.05199207,142.85,142.83,3.18]
[1765305159884,0.0510359,142.85,142.83,3.22423822]
[1765305167792,0.0510359,142.85,142.84,9.4802]
[1765305169085,0.0510359,142.85,142.84,3.18]
[1765305170383,6.2984,142.89,142.84,3.18]
[1765305170694,121.5,142.91,142.84,3.18]
[1765305170988,121.5,142.91,142.86,3.18]
[1765305171387,0.04650955,142.9,142.86,3.18]
[1765305171589,0.04650955,142.9,142.87,3.23260148]
[1765305171782,6.2981,142.89,142.87,0.05260148]
[1765305175288,6.2981,142.89,142.87,3.15260148]
[1765305177296,2.76783305,142.9,142.87,3.15260148]
[1765305178787,0.04650955,142.9,142.87,3.15260148]
[1765305179898,0.04650955,142.9,142.88,3.1]
[1765305180100,2.76783305,142.9,142.87,0.05260148]
[1765305180289,2.7213235,142.88,142.87,3.15260148]
[1765305180889,2.7213235,142.88,142.87,0.05260148]
[1765305183091,0.04650955,142.9,142.87,3.15260148]
[1765305184700,2.7213235,142.89,142.87,3.15260148]
[1765305184900,6.34410955,142.9,142.87,3.15260148]
[1765305185095,9.06543305,142.9,142.87,3.15260148]
[1765305185911,2.7213235,142.88,142.87,0.05260148]
[1765305186395,97.9833,142.87,142.81,3.19]
[1765305186594,2.7213235,142.83,142.81,3.19]
[1765305186800,9.0220235,142.83,142.81,3.19]
[1765305187089,2.7213235,142.83,142.8,3.19]
[1765305187300,2.76761661,142.83,142.8,3.23421833]
[1765305188499,6.3012,142.82,142.8,3.23421833]
[1765305188807,2.7213235,142.81,142.8,0.04421833]
[1765305189999,2.7213235,142.81,142.8,3.23421833]
[1765305190199,2.7213235,142.81,142.8,0.04421833]
[1765305192511,2.7213235,142.81,142.75,6.48327589]
[1765305192710,2.7213235,142.78,142.75,9.67327589]
[1765305193010,2.7213235,142.78,142.76,3.19]
[1765305193201,62.2213235,142.8,142.76,3.19]
[1765305193607,0.0489284,142.79,142.77,3.24247495]
[1765305196601,2.7213235,142.78,142.77,0.05247495]
[1765305196802,2.7213235,142.78,142.77,3.24247495]
[1765305197004,0.0489284,142.79,142.77,3.24247495]
[1765305200807,2.7213235,142.78,142.77,0.05247495]
[1765305201900,6.304,142.76,142.74,6.48327589]
[1765305202105,2.7213235,142.76,142.73,3.19]
[1765305203112,2.76791282,142.76,142.73,3.24368782]
[1765305203511,6.3043,142.75,142.73,3.24368782]
[1765305203909,2.7213235,142.74,142.73,0.05368782]
[1765305210823,2.76791282,142.76,142.73,3.28368782]
[1765305211018,0.04658932,142.76,142.73,3.28368782]
[1765305211320,2.7213235,142.74,142.73,0.05368782]
[1765305211826,6.3042,142.75,142.73,0.05368782]
[1765305212028,2.76791282,142.76,142.73,3.28368782]
[1765305214617,9.07181282,142.76,142.73,3.28368782]
[1765305215424,6.3042,142.75,142.73,0.05368782]
[1765305216928,2.7213235,142.74,142.73,0.05368782]
[1765305218428,6.3042,142.75,142.73,0.05368782]
[1765305218623,0.04658932,142.76,142.73,3.28368782]
[1765305219225,6.35038932,142.76,142.73,3.28368782]
[1765305219430,2.76791282,142.76,142.73,0.05368782]
[1765305220023,6.3043,142.75,142.73,0.05368782]
[1765305221030,2.7213235,142.74,142.73,0.05368782]
[1765305226536,9.0259235,142.74,142.73,0.05368782]
[1765305228754,6.3065,142.7,142.67,3.23]
[1765305229748,6.35099745,142.7,142.67,3.28299052]
[1765305232646,9.0282235,142.69,142.67,0.05299052]
[1765305235249,98.1161,142.68,142.61,9.49327589]
[1765305235446,2.7213235,142.64,142.61,3.01]
[1765305235646,9.0304235,142.64,142.61,3.01]
[1765305236144,0.04690238,142.64,142.61,3.06237037]
[1765305237557,0.04690238,142.64,142.63,3.01]
[1765305238656,0.04690238,142.64,142.62,3.01]
[1765305238842,0.04690238,142.64,142.61,3.06237037]
[1765305239043,0.04690238,142.64,142.61,0.05237037]
[1765305239245,0.04690238,142.64,142.61,3.06237037]
[1765305240761,0.04690238,142.64,142.61,9.37257037]
[1765305240961,0.04690238,142.64,142.62,3.01]
[1765305241555,0.04690238,142.64,142.61,3.06237037]
[1765305242653,6.35610238,142.64,142.61,3.06237037]
[1765305243748,0.04690238,142.64,142.61,3.06237037]
[1765305244254,0.04690238,142.64,142.63,3.01]
[1765305244650,0.04690238,142.64,142.62,3.11]
[1765305246568,0.04690238,142.64,142.62,9.4198]
[1765305246767,0.04690238,142.64,142.63,3.11]
[1765305248570,59.58,142.72,142.64,3.11]
[1765305249064,6.3069,142.69,142.66,3.11]
[1765305249472,6.3564006,142.69,142.66,3.15965164]
[1765305250471,0.0495006,142.69,142.66,3.15965164]
[1765305251974,0.0495006,142.69,142.67,3.11]
[1765305252672,0.0495006,142.69,142.66,0.04965164]
[1765305253478,6.3564006,142.69,142.66,0.04965164]
[1765305254373,6.3564006,142.69,142.66,3.15965164]
[1765305255275,6.3564006,142.69,142.66,0.04965164]
[1765305257085,6.3564006,142.69,142.66,3.15965164]
[1765305257984,6.3564006,142.69,142.66,0.04965164]
[1765305258284,6.3564006,142.69,142.66,3.15965164]
[1765305259484,6.3073,142.68,142.66,0.04965164]
[1765305264090,6.3077,142.67,142.66,0.04965164]
[1765305264694,159.1036,142.67,142.6,3.11]
[1765305264989,4.26681734,142.65,142.6,3.11]
[1765305265586,6.3097,142.63,142.61,0.04853812]
[1765305268688,0.05336466,142.64,142.61,0.04853812]
[1765305268889,0.05336466,142.64,142.61,3.31853812]
[1765305269490,6.36246466,142.64,142.61,3.31853812]